fUSD/lending_fUSD_20260621
["ID","MTS","AMOUNT","RATE_DAILY","PERIOD"]
[425892487,1782027031000,-710.48318671,0.00011617,2]
[425892484,1782027031000,-710.48318671,0.00011617,2]
[425892505,1782027031000,-710.48318671,0.00011617,2]
[425892483,1782027031000,-710.48318671,0.00011617,2]
[425892475,1782027031000,-710.48318671,0.00011617,2]
[425892479,1782027031000,-710.48318671,0.00011617,2]
[425892481,1782027031000,-710.48318671,0.00011617,2]
[425892474,1782027031000,-710.48318671,0.00011617,2]
[425892486,1782027031000,-710.48318671,0.00011617,2]
[425892477,1782027031000,-710.48318671,0.00011617,2]
[425892476,1782027031000,-710.48318671,0.00011617,2]
[425892485,1782027031000,-710.48318671,0.00011617,2]
[425892472,1782027031000,-710.48318671,0.00011617,2]
[425892470,1782027031000,-286.95561559,0.00011617,2]
[425892473,1782027031000,-710.48318671,0.00011617,2]
[425892471,1782027031000,-719.25458407,0.00011617,2]
[425892468,1782027031000,-719.25458407,0.00011617,2]
[425892469,1782027031000,-432.29896848,0.00011617,2]
[425892508,1782027031000,-191.65324772,0.00011617,2]
[425892480,1782027031000,-710.48318671,0.00011617,2]
[425892498,1782027031000,-710.48318671,0.00011617,2]
[425892478,1782027031000,-710.48318671,0.00011617,2]
[425892503,1782027031000,-710.48318671,0.00011617,2]
[425892520,1782027031000,-720.35100876,0.00011617,2]
[425892517,1782027031000,-720.35100876,0.00011617,2]
[425892537,1782027031000,-151.0,0.00011623,2]
[425892557,1782027031000,-500.0,0.00011623,2]
[425892534,1782027031000,-151.0,0.00011623,2]
[425892542,1782027031000,-153.0,0.00011623,2]
[425892513,1782027031000,-720.35100876,0.00011617,2]
[425892544,1782027031000,-150.0,0.00011623,2]
[425892540,1782027031000,-151.0,0.00011623,2]
[425892546,1782027031000,-153.0,0.00011623,2]
[425892553,1782027031000,-151.0,0.00011623,2]
[425892551,1782027031000,-151.0,0.00011623,2]
[425892548,1782027031000,-153.0,0.00011623,2]
[425892555,1782027031000,-150.0,0.00011623,2]
[425892538,1782027031000,-151.0,0.00011623,2]
[425892515,1782027031000,-720.35100876,0.00011617,2]
[425892500,1782027031000,-710.48318671,0.00011617,2]
[425892518,1782027031000,-720.35100876,0.00011617,2]
[425892532,1782027031000,-152.0,0.00011622,2]
[425892509,1782027031000,-720.35100876,0.00011617,2]
[425892497,1782027031000,-710.48318671,0.00011617,2]
[425892507,1782027031000,-710.48318671,0.00011617,2]
[425892510,1782027031000,-720.35100876,0.00011617,2]
[425892504,1782027031000,-710.48318671,0.00011617,2]
[425892502,1782027031000,-710.48318671,0.00011617,2]
[425892501,1782027031000,-710.48318671,0.00011617,2]
[425892522,1782027031000,-317.95166225,0.00011619,2]
[425892529,1782027031000,-150.0,0.00011622,2]
[425892511,1782027031000,-720.35100876,0.00011617,2]
[425892524,1782027031000,-2120.52,0.00011619,2]
[425892527,1782027031000,-151.0,0.00011622,2]
[425892531,1782027031000,-150.0,0.00011622,2]
[425892512,1782027031000,-720.35100876,0.00011617,2]
[425892581,1782027032000,-160.0,0.00011638,2]
[425892591,1782027032000,-1076.60059316,0.00011763,2]
[425892590,1782027032000,-151.67377997,0.00011763,2]
[425892586,1782027032000,-134184.9495,0.00011763,2]
[425892585,1782027032000,-17963.6347,0.00011763,2]
[425892584,1782027032000,-500.0,0.00011763,2]
[425892587,1782027032000,-2945.15480054,0.00011763,2]
[425892583,1782027032000,-151.0,0.00011763,2]
[425892577,1782027032000,-151.0,0.00011625,2]
[425892567,1782027032000,-150.0,0.00011624,2]
[425892582,1782027032000,-3951.22,0.00011682,2]
[425892575,1782027032000,-150.0,0.00011625,2]
[425892571,1782027032000,-152.0,0.00011624,2]
[425892561,1782027032000,-150.0,0.00011624,2]
[425892579,1782027032000,-150.0,0.00011625,2]
[425892569,1782027032000,-151.0,0.00011624,2]
[425892589,1782027032000,-163.77,0.00011763,2]
[425892565,1782027032000,-151.0,0.00011624,2]
[425892563,1782027032000,-153.0,0.00011624,2]
[425892559,1782027032000,-151.0,0.00011624,2]
[425892573,1782027032000,-153.0,0.00011624,2]
[425892593,1782027032000,-150.0,0.00011862,2]
[425892588,1782027032000,-3883.48339946,0.00011763,2]
[425892595,1782027032000,-150.0,0.00011862,2]
[425892592,1782027032000,-674.33101004,0.00011763,2]
[425892609,1782027032000,-6229.30164116,0.0001282,2]
[425892615,1782027032000,-21545.66823382,0.000135,2]
[425892610,1782027032000,-166.66,0.00012878,2]
[425892613,1782027032000,-1076.60059312,0.00013489,2]
[425892614,1782027032000,-674.33101,0.00013489,2]
[425892611,1782027032000,-166.66,0.00013143,2]
[425892612,1782027032000,-166.66,0.00013409,2]
[425892608,1782027032000,-250.0,0.0001278,2]
[425892599,1782027032000,-150.0,0.00011863,2]
[425892607,1782027032000,-3630.08162628,0.00012743,3]
[425892606,1782027032000,-21369.91837372,0.00012743,3]
[425892604,1782027032000,-3795.38,0.00012423,2]
[425892602,1782027032000,-395.3672683,0.00012139,2]
[425892598,1782027032000,-151.0,0.00011863,2]
[425892596,1782027032000,-151.0,0.00011862,2]
[425892605,1782027032000,-166.66,0.00012612,2]
[425892600,1782027032000,-216.32317309,0.00011882,2]
[425892597,1782027032000,-151.0,0.00011863,2]
[425892603,1782027032000,-200.0,0.00012171,2]
[425892601,1782027032000,-191.44,0.00011945,2]
[425892594,1782027032000,-151.0,0.00011862,2]
[425892811,1782027039000,-618.70535258,0.000135,2]
[425892887,1782027044000,-630.67849891,0.000135,2]
[425892939,1782027046000,-1967.2427477,0.000135,2]
[425892949,1782027046000,-2584.62480382,0.000135,2]
[425892950,1782027111000,-3100.0,0.00011518,2]
[425892952,1782027159000,27.443,0.00011517,2]
[425892951,1782027159000,500.0,0.00011517,2]
[425892953,1782027173000,-472.557,0.00011517,2]
[425892954,1782027227000,-2270.45930188,0.00011288,2]
[425892956,1782027244000,-1005.49569812,0.00011288,2]
[425892957,1782027248000,7368.099469,7.945e-05,2]
[425892958,1782027294000,-230.791,0.00011288,2]
[425892959,1782027348000,-500.0,0.00011417,2]
[425892963,1782027401000,-500.0,0.00011417,2]
[425892964,1782027454000,-500.0,0.00011416,2]
[425892965,1782027474000,835.57,0.00011,2]
[425892970,1782027508000,-987.54069812,0.00011318,2]
[425892972,1782027524000,-1183.77587933,0.00011318,2]
[425892971,1782027524000,296.51,0.00028266,120]
[425892975,1782027543000,179.2,0.00028395,120]
[425892977,1782027575000,-500.0,0.00011317,2]
[425892978,1782027634000,255.23557652,0.00010718,2]
[425892979,1782027635000,251.21975901,0.00010517,2]
[425892980,1782027795000,-164.48446589,0.00011315,2]
[425892981,1782027809000,1790.623,0.00011288,2]
[425892982,1782027823000,150.0,0.00030137,120]
[425892983,1782027848000,-830.141,0.00011288,2]
[425892984,1782027861000,403.56287105,0.00010718,2]
[425892985,1782027862000,415.73946632,0.00010515,2]
[425892987,1782027903000,-184.632,0.00011288,2]
[425892988,1782027908000,158.76059121,0.00010356,2]
[425892989,1782027955000,-150.0,0.00011313,2]
[425892991,1782028009000,-170.32813611,0.00011314,2]
[425892992,1782028013000,9484490.98076014,0.00030137,120]
[425892993,1782028062000,-216.32317309,0.00011315,2]
[425892994,1782028116000,-171.15007927,0.00011313,2]
[425892995,1782028139000,-2770.3867774,0.00011215,2]
[425892996,1782028139000,-3220.26213903,0.00011215,2]
[425892999,1782028154000,151.0,0.00011213,2]
[425893001,1782028154000,198.0,0.00011213,2]
[425893002,1782028154000,196.85245786,0.00011213,2]
[425893000,1782028154000,151.0,0.00011213,2]
[425893004,1782028155000,1.5959758,0.00011213,2]
[425893003,1782028155000,152.0,0.00011213,2]
[425893005,1782028170000,-18367.49903042,0.00011215,2]
[425893007,1782028171000,-2489.9809684,0.00011215,2]
[425893006,1782028171000,-3340.07511736,0.00011215,2]
[425893008,1782028185000,-7534.11292211,0.00011215,2]
[425893009,1782028202000,-3456.67623907,0.00011215,2]
[425893011,1782028202000,-1150.4638783,0.00011215,2]
[425893012,1782028202000,-7534.11292211,0.00011215,2]
[425893010,1782028202000,-3456.67623907,0.00011215,2]
[425893033,1782028231000,-500.0,0.00011312,2]
[425893034,1782028231000,-200.0,0.00011312,2]
[425893031,1782028231000,-500.0,0.00011312,2]
[425893032,1782028231000,-500.0,0.00011312,2]
[425893025,1782028231000,-513.12693132,0.00011312,2]
[425893030,1782028231000,-500.0,0.00011312,2]
[425893029,1782028231000,-500.0,0.00011312,2]
[425893024,1782028231000,-500.0,0.00011312,2]
[425893027,1782028231000,-313.59,0.00011312,2]
[425893023,1782028231000,-500.0,0.00011312,2]
[425893022,1782028231000,-500.0,0.00011312,2]
[425893020,1782028231000,-500.0,0.00011312,2]
[425893021,1782028231000,-500.0,0.00011312,2]
[425893016,1782028231000,-500.0,0.00011312,2]
[425893017,1782028231000,-500.0,0.00011312,2]
[425893018,1782028231000,-500.0,0.00011312,2]
[425893019,1782028231000,-359.86572948,0.00011312,2]
[425893015,1782028231000,-67400.77916673,0.00011215,2]
[425893028,1782028231000,-500.0,0.00011312,2]
[425893036,1782028231000,-500.0,0.00011312,2]
[425893026,1782028231000,-165.9,0.00011312,2]
[425893039,1782028231000,-500.0,0.00011312,2]
[425893035,1782028231000,-500.0,0.00011312,2]
[425893066,1782028231000,-500.0,0.00011312,2]
[425893054,1782028231000,-500.0,0.00011312,2]
[425893056,1782028231000,-500.0,0.00011312,2]
[425893049,1782028231000,-500.0,0.00011312,2]
[425893051,1782028231000,-500.0,0.00011312,2]
[425893060,1782028231000,-500.0,0.00011312,2]
[425893047,1782028231000,-500.0,0.00011312,2]
[425893064,1782028231000,-500.0,0.00011312,2]
[425893052,1782028231000,-500.0,0.00011312,2]
[425893058,1782028231000,-500.0,0.00011312,2]
[425893062,1782028231000,-500.0,0.00011312,2]
[425893041,1782028231000,-500.0,0.00011312,2]
[425893042,1782028231000,-500.0,0.00011312,2]
[425893040,1782028231000,-500.0,0.00011312,2]
[425893044,1782028231000,-500.0,0.00011312,2]
[425893043,1782028231000,-500.0,0.00011312,2]
[425893045,1782028231000,-500.0,0.00011312,2]
[425893038,1782028231000,-500.0,0.00011312,2]
[425893037,1782028231000,-500.0,0.00011312,2]
[425893092,1782028232000,-500.0,0.00011312,2]
[425893098,1782028232000,-500.0,0.00011312,2]
[425893094,1782028232000,-500.0,0.00011312,2]
[425893097,1782028232000,-500.0,0.00011312,2]
[425893096,1782028232000,-500.0,0.00011312,2]
[425893095,1782028232000,-500.0,0.00011312,2]
[425893099,1782028232000,-500.0,0.00011312,2]
[425893104,1782028232000,-500.0,0.00011312,2]
[425893101,1782028232000,-500.0,0.00011312,2]
[425893103,1782028232000,-500.0,0.00011312,2]
[425893106,1782028232000,-500.0,0.00011312,2]
[425893102,1782028232000,-500.0,0.00011312,2]
[425893105,1782028232000,-500.0,0.00011312,2]
[425893107,1782028232000,-500.0,0.00011312,2]
[425893093,1782028232000,-500.0,0.00011312,2]
[425893100,1782028232000,-500.0,0.00011312,2]
[425893091,1782028232000,-500.0,0.00011312,2]
[425893073,1782028232000,-500.0,0.00011312,2]
[425893090,1782028232000,-500.0,0.00011312,2]
[425893072,1782028232000,-354.19489616,0.00011312,2]
[425893070,1782028232000,-500.0,0.00011312,2]
[425893068,1782028232000,-500.0,0.00011312,2]
[425893084,1782028232000,-500.0,0.00011312,2]
[425893109,1782028232000,-500.0,0.00011312,2]
[425893083,1782028232000,-500.0,0.00011312,2]
[425893080,1782028232000,-500.0,0.00011312,2]
[425893082,1782028232000,-500.0,0.00011312,2]
[425893074,1782028232000,-500.0,0.00011312,2]
[425893078,1782028232000,-500.0,0.00011312,2]
[425893081,1782028232000,-500.0,0.00011312,2]
[425893086,1782028232000,-500.0,0.00011312,2]
[425893087,1782028232000,-500.0,0.00011312,2]
[425893088,1782028232000,-500.0,0.00011312,2]
[425893085,1782028232000,-500.0,0.00011312,2]
[425893089,1782028232000,-500.0,0.00011312,2]
[425893108,1782028232000,-500.0,0.00011312,2]
[425893076,1782028232000,-500.0,0.00011312,2]
[425893112,1782028232000,-500.0,0.00011312,2]
[425893134,1782028232000,-10000.0,0.000114,2]
[425893132,1782028232000,-216.32317309,0.0001132,2]
[425893135,1782028232000,-151.67377997,0.00011418,2]
[425893133,1782028232000,-203.0,0.00011326,2]
[425893136,1782028232000,-1520.62698283,0.00011418,2]
[425893137,1782028232000,-206.77782335,0.00011439,2]
[425893138,1782028232000,-500.0,0.00011518,2]
[425893129,1782028232000,-550.0,0.00011312,2]
[425893139,1782028232000,-160.0,0.00011541,2]
[425893140,1782028232000,-831.53404831,0.0001167,2]
[425893144,1782028232000,-41687.59273039,0.00012099,2]
[425893142,1782028232000,-413.44216253,0.00011841,2]
[425893145,1782028232000,-24420.23771755,0.00012099,2]
[425893143,1782028232000,-618.48474879,0.00011841,2]
[425893146,1782028232000,-23205.7078262,0.00012099,2]
[425893147,1782028232000,-2871.21161839,0.00012099,2]
[425893141,1782028232000,-234.36189497,0.00011841,2]
[425893131,1782028232000,-150.0,0.00011312,2]
[425893110,1782028232000,-500.0,0.00011312,2]
[425893127,1782028232000,-500.0,0.00011312,2]
[425893111,1782028232000,-500.0,0.00011312,2]
[425893113,1782028232000,-500.0,0.00011312,2]
[425893114,1782028232000,-500.0,0.00011312,2]
[425893116,1782028232000,-500.0,0.00011312,2]
[425893117,1782028232000,-500.0,0.00011312,2]
[425893119,1782028232000,-500.0,0.00011312,2]
[425893115,1782028232000,-500.0,0.00011312,2]
[425893130,1782028232000,-500.0,0.00011312,2]
[425893120,1782028232000,-500.0,0.00011312,2]
[425893121,1782028232000,-500.0,0.00011312,2]
[425893122,1782028232000,-500.0,0.00011312,2]
[425893123,1782028232000,-500.0,0.00011312,2]
[425893126,1782028232000,-500.0,0.00011312,2]
[425893125,1782028232000,-350.0,0.00011312,2]
[425893124,1782028232000,-500.0,0.00011312,2]
[425893128,1782028232000,-500.0,0.00011312,2]
[425893118,1782028232000,-500.0,0.00011312,2]
[425893224,1782028242000,-804.74513405,0.00012099,2]
[425893225,1782028242000,-318.46,0.00012099,2]
[425893223,1782028242000,-500.0,0.00011216,2]
[425893228,1782028243000,-316.06336268,0.00012099,2]
[425893227,1782028243000,-6994.81164812,0.00012099,2]
[425893226,1782028243000,-10534.5794,0.00012099,2]
[425893251,1782028246000,-527.3,0.00013698,2]
[425893249,1782028246000,-502.63850258,0.00013698,2]
[425893255,1782028246000,-527.3,0.00013698,2]
[425893254,1782028246000,-527.3,0.00013698,2]
[425893262,1782028246000,-527.3,0.00013698,2]
[425893257,1782028246000,-527.3,0.00013698,2]
[425893250,1782028246000,-500.0,0.00013698,2]
[425893263,1782028246000,-527.3,0.00013698,2]
[425893258,1782028246000,-527.3,0.00013698,2]
[425893259,1782028246000,-527.3,0.00013698,2]
[425893260,1782028246000,-527.3,0.00013698,2]
[425893256,1782028246000,-527.3,0.00013698,2]
[425893245,1782028246000,-69896.01010813,0.000135,2]
[425893237,1782028246000,-933.13372653,0.00012237,2]
[425893248,1782028246000,-500.0,0.00013698,2]
[425893252,1782028246000,-527.3,0.00013698,2]
[425893242,1782028246000,-41775.87,0.00013264,2]
[425893246,1782028246000,-200.0,0.000135,2]
[425893243,1782028246000,-166.66,0.00013399,2]
[425893253,1782028246000,-527.3,0.00013698,2]
[425893244,1782028246000,-887.26,0.0001345,2]
[425893241,1782028246000,-1520.62698283,0.00013182,2]
[425893238,1782028246000,-500.0,0.00012337,2]
[425893264,1782028246000,-527.3,0.00013698,2]
[425893236,1782028246000,-301361.94422892,0.00012099,2]
[425893240,1782028246000,-166.66,0.00013123,2]
[425893239,1782028246000,-257.00418084,0.00012337,2]
[425893247,1782028246000,-166.66,0.00013675,2]
[425893265,1782028246000,-527.3,0.00013698,2]
[425893261,1782028246000,-527.3,0.00013698,2]
[425893268,1782028246000,-527.3,0.00013698,2]
[425893269,1782028246000,-527.3,0.00013698,2]
[425893297,1782028246000,-8486.82244875,0.00014108,2]
[425893296,1782028246000,-3018.52930529,0.00014108,2]
[425893293,1782028246000,-445.22130505,0.00014107,2]
[425893295,1782028246000,-251.0681823,0.00014108,2]
[425893291,1782028246000,-250.0,0.00014,2]
[425893294,1782028246000,-95.02869495,0.00014107,2]
[425893292,1782028246000,-527.3,0.00014107,2]
[425893290,1782028246000,-166.66,0.00013952,2]
[425893283,1782028246000,-540.25,0.00013698,2]
[425893287,1782028246000,-540.25,0.00013698,2]
[425893281,1782028246000,-540.25,0.00013698,2]
[425893286,1782028246000,-540.25,0.00013698,2]
[425893284,1782028246000,-540.25,0.00013698,2]
[425893282,1782028246000,-540.25,0.00013698,2]
[425893274,1782028246000,-540.25,0.00013698,2]
[425893279,1782028246000,-540.25,0.00013698,2]
[425893280,1782028246000,-540.25,0.00013698,2]
[425893277,1782028246000,-540.25,0.00013698,2]
[425893288,1782028246000,-540.25,0.00013698,2]
[425893289,1782028246000,-1541.6,0.00013699,2]
[425893278,1782028246000,-540.25,0.00013698,2]
[425893275,1782028246000,-540.25,0.00013698,2]
[425893276,1782028246000,-540.25,0.00013698,2]
[425893273,1782028246000,-540.25,0.00013698,2]
[425893285,1782028246000,-540.25,0.00013698,2]
[425893266,1782028246000,-308.43819806,0.00013698,2]
[425893267,1782028246000,-218.86180194,0.00013698,2]
[425893270,1782028246000,-540.25,0.00013698,2]
[425893271,1782028246000,-540.25,0.00013698,2]
[425893298,1782028277000,273.49461111,0.00011879,7]
[425893309,1782028355000,-500.0,0.00011312,2]
[425893313,1782028381000,205.72503916,0.00010618,2]
[425893314,1782028381000,77.0472088,0.00010618,2]
[425893315,1782028382000,89.30981056,0.00010618,2]
[425893316,1782028382000,183.88173796,0.00010618,2]
[425893318,1782028390000,238.77662112,0.00011214,2]
[425893317,1782028390000,196.73118972,0.00011214,2]
[425893321,1782028390000,391.24739765,0.00011214,2]
[425893319,1782028390000,64.49218916,0.00011214,2]
[425893320,1782028390000,108.75260235,0.00011214,2]
[425893325,1782028393000,108.75260235,0.00011214,2]
[425893331,1782028393000,196.75470931,0.00011214,2]
[425893330,1782028393000,119.09010368,0.00011214,2]
[425893328,1782028393000,375.85853111,0.00011214,2]
[425893329,1782028393000,124.14146889,0.00011214,2]
[425893327,1782028393000,124.14146889,0.00011214,2]
[425893326,1782028393000,267.10592876,0.00011214,2]
[425893324,1782028393000,391.24739765,0.00011214,2]
[425893323,1782028393000,108.75260235,0.00011214,2]
[425893332,1782028394000,55.60139012,0.00011214,2]
[425893340,1782028409000,310.55993859,0.00011214,2]
[425893337,1782028409000,501.06241283,0.00011214,2]
[425893339,1782028409000,68.13348935,0.00011214,2]
[425893336,1782028409000,570.99104001,0.00011214,2]
[425893335,1782028409000,500.0,0.00011214,2]
[425893334,1782028409000,-616.88776754,0.00011312,2]
[425893341,1782028409000,121.30657206,0.00011214,2]
[425893343,1782028410000,153.75,0.00011214,2]
[425893342,1782028410000,32.44342794,0.00011214,2]
[425893344,1782028410000,153.75,0.00011214,2]
[425893345,1782028410000,160.05657206,0.00011214,2]
[425893347,1782028410000,162.791075,0.00011214,2]
[425893348,1782028410000,186.193351,0.00011214,2]
[425893349,1782028410000,90.8539229,0.00011214,2]
[425893350,1782028410000,236.28396541,0.00011214,2]
[425893346,1782028410000,60.1616511,0.00011214,2]
[425893357,1782028462000,-2096.611,0.0001119,2]
[425893359,1782028482000,4695.54716599,8e-05,2]
[425893360,1782028482000,2962.66275387,8e-05,2]
[425893363,1782028518000,-184.632,0.0001119,2]
[425893364,1782028572000,-163.7166527,0.00010413,2]
[425893366,1782028625000,-174.80233575,0.00010618,2]
[425893369,1782028679000,-150.0,0.00011202,2]
[425893370,1782028732000,-500.0,0.00011318,2]
[425893371,1782028785000,-214.69024007,0.00011322,2]
[425893372,1782028839000,-500.0,0.00011102,2]
[425893380,1782029008000,-839.82035385,0.00011322,2]
[425893375,1782029008000,-489.55430929,0.000113,2]
[425893374,1782029008000,-500.0,0.000112,2]
[425893377,1782029008000,-4184.0798,0.00011318,2]
[425893378,1782029008000,-6439.1331,0.00011318,2]
[425893383,1782029008000,-212.69952153,0.00011408,2]
[425893379,1782029008000,-187.85396007,0.0001132,2]
[425893382,1782029008000,-150.0,0.0001137,2]
[425893381,1782029008000,-1609.6967197,0.00011322,2]
[425893384,1782029008000,-85237.16223556,0.00011418,2]
[425893376,1782029008000,-150.0,0.00011311,2]
[425893385,1782029044000,-1677.289,0.0001119,2]
[425893386,1782029059000,-184.633,0.0001119,2]
[425893387,1782029059000,-99815.367,0.00011418,2]
[425893388,1782029060000,-184.633,0.00011418,2]
[425893391,1782029069000,-500.0,0.00011321,2]
[425893389,1782029069000,-500.0,0.00011321,2]
[425893393,1782029069000,-500.0,0.00011321,2]
[425893390,1782029069000,-449.62872445,0.00011321,2]
[425893394,1782029069000,-357.94868589,0.00011321,2]
[425893395,1782029069000,-97246.40485215,0.00011418,2]
[425893392,1782029069000,-446.01773751,0.00011321,2]
[425893396,1782029081000,-100000.0,0.00011418,2]
[425893397,1782029098000,-2000.0,0.00011418,2]
[425893400,1782029114000,-2000.0,0.00011418,2]
[425893399,1782029114000,-99500.0,0.00011418,2]
[425893398,1782029114000,-500.0,0.000112,2]
[425893401,1782029144000,-500.27313165,0.0001132,2]
[425893402,1782029144000,-4059.25031571,0.00011418,2]
[425893403,1782029146000,-4559.52344736,0.00011418,2]
[425893405,1782029147000,-97900.0,0.00011418,2]
[425893404,1782029147000,-2000.0,0.00011318,2]
[425893406,1782029179000,-643.87868786,0.00011322,2]
[425893407,1782029181000,-150.0,0.00011417,2]
[425893408,1782029181000,-493.87868786,0.00011417,2]
[425893409,1782029183000,150.0,8.1e-05,2]
[425893410,1782029249000,-3291.815194,0.00011261,2]
[425893411,1782029265000,-4559.52344736,0.00011318,2]
[425893412,1782029293000,-1055.93942065,0.00011219,2]
[425893413,1782029294000,-1055.93942065,0.00011318,2]
[425893414,1782029296000,150.0,0.00010518,2]
[425893415,1782029332000,-270.89428432,0.00010518,2]
[425893416,1782029347000,-150.0,0.00010518,2]
[425893419,1782029367000,-150.0,0.00010729,2]
[425893421,1782029367000,-150.0,0.0001094,2]
[425893418,1782029367000,-150.0,0.00010624,2]
[425893420,1782029367000,-150.0,0.00010835,2]
[425893422,1782029367000,-150.0,0.00011045,2]
[425893417,1782029367000,-568.90355549,0.00010518,2]
[425893424,1782029367000,-252.0,0.00011255,2]
[425893426,1782029367000,-500.0,0.00011317,2]
[425893425,1782029367000,-225.4174501,0.00011317,2]
[425893427,1782029367000,-500.0,0.00011317,2]
[425893428,1782029367000,-229.41970277,0.00011317,2]
[425893429,1782029367000,-137.28707791,0.00011317,2]
[425893423,1782029367000,-150.0,0.0001115,2]
[425893430,1782029391000,-150.0,0.00010571,2]
[425893431,1782029409000,-216.32317309,0.00010835,2]
[425893432,1782029409000,-160.0,0.00010835,2]
[425893433,1782029409000,-322.23437998,0.00011228,2]
[425893435,1782029409000,-213.63139988,0.00011317,2]
[425893436,1782029409000,-500.0,0.00011317,2]
[425893434,1782029409000,-362.71292209,0.00011317,2]
[425893439,1782029410000,-500.0,0.00011317,2]
[425893437,1782029410000,-500.0,0.00011317,2]
[425893438,1782029410000,-500.0,0.00011317,2]
[425893440,1782029410000,-12.58089608,0.00011317,2]
[425893444,1782029410000,-500.0,0.00011317,2]
[425893443,1782029410000,-500.0,0.00011317,2]
[425893442,1782029410000,-500.0,0.00011317,2]
[425893445,1782029410000,-161.72529929,0.00011317,2]
[425893441,1782029410000,-525.05953903,0.00011317,2]
[425893457,1782029431000,-500.0,0.00011317,2]
[425893454,1782029431000,-338.27470071,0.00011317,2]
[425893455,1782029431000,-500.0,0.00011317,2]
[425893458,1782029431000,-500.0,0.00011317,2]
[425893459,1782029431000,-500.0,0.00011317,2]
[425893453,1782029431000,-364.86376078,0.00011032,2]
[425893456,1782029431000,-500.0,0.00011317,2]
[425893462,1782029431000,-500.0,0.00011317,2]
[425893460,1782029431000,-500.0,0.00011317,2]
[425893464,1782029431000,-500.0,0.00011317,2]
[425893463,1782029431000,-500.0,0.00011317,2]
[425893467,1782029431000,-500.0,0.00011317,2]
[425893466,1782029431000,-500.0,0.00011317,2]
[425893468,1782029431000,-500.0,0.00011317,2]
[425893461,1782029431000,-500.0,0.00011317,2]
[425893491,1782029432000,-500.0,0.00011317,2]
[425893492,1782029432000,-500.0,0.00011317,2]
[425893493,1782029432000,-500.0,0.00011317,2]
[425893495,1782029432000,-500.0,0.00011317,2]
[425893497,1782029432000,-150.0,0.00011317,2]
[425893498,1782029432000,-500.0,0.00011317,2]
[425893496,1782029432000,-500.0,0.00011317,2]
[425893501,1782029432000,-500.0,0.00011317,2]
[425893499,1782029432000,-500.0,0.00011317,2]
[425893502,1782029432000,-250.0,0.00011317,2]
[425893503,1782029432000,-500.0,0.00011317,2]
[425893506,1782029432000,-300.0,0.00011317,2]
[425893505,1782029432000,-500.0,0.00011317,2]
[425893504,1782029432000,-500.0,0.00011317,2]
[425893494,1782029432000,-500.0,0.00011317,2]
[425893500,1782029432000,-500.0,0.00011317,2]
[425893489,1782029432000,-97.6897176,0.00011317,2]
[425893507,1782029432000,-150.0,0.00011317,2]
[425893488,1782029432000,-68.97309093,0.00011317,2]
[425893472,1782029432000,-500.0,0.00011317,2]
[425893474,1782029432000,-500.0,0.00011317,2]
[425893473,1782029432000,-500.0,0.00011317,2]
[425893476,1782029432000,-500.0,0.00011317,2]
[425893475,1782029432000,-500.0,0.00011317,2]
[425893478,1782029432000,-500.0,0.00011317,2]
[425893477,1782029432000,-500.0,0.00011317,2]
[425893490,1782029432000,-610.80178175,0.00011317,2]
[425893480,1782029432000,-500.0,0.00011317,2]